Cogmind - Beta 16 @@@ ROGUE MODE // 2026.01.16 @ 20:02:01 Player: Picayune Result: Self-destructed Performance ------------- Evolutions (3) 1500 Regions Visited (8) 1600 Robots Destroyed (20) 100 Value Destroyed (664) 664 Prototype IDs (25) 500 Alien Tech Used (0) 0 Bonus (409) 409 TOTAL SCORE: 4773 Bonus ------- Follower Combat Kills 109 Aligned with FarCom 300 Cogmind --------- Core Integrity 679/700 Matter 300/300 Energy 269/370 System Corruption 1% Temperature Cool (0) Movement Rolling (115) Ox1 Location -7/Factory Parts ------- > --- POWER (2) -------- Light Nuclear Core Heavy Deuterium Engine > --- PROPULSION (4) --- Heavy Treads Armored Huge Wheel > --- UTILITY (4) ------ Improved Cooling System Small Storage Unit Transmission Jammer Cloak of Protection > --- WEAPON (3) ------- Beamcaster Beamcaster Enhanced Autogun > --- INVENTORY (8) ---- Light Deuterium Engine Improved Treads Armored Huge Wheel Energy Filter Improved System Shield Beamcaster Enhanced Autogun Peak State ------------ > --- POWER ------------ Light Nuclear Core Heavy Deuterium Engine > --- PROPULSION ------- Heavy Treads Armored Huge Wheel > --- UTILITY ---------- Improved Cooling System Small Storage Unit Transmission Jammer Cloak of Protection > --- WEAPON ----------- Beamcaster Beamcaster Enhanced Autogun > --- INVENTORY -------- Light Deuterium Engine Improved Treads Armored Huge Wheel Energy Filter Improved System Shield Beamcaster Enhanced Autogun [Rating: 62] Favorites ----------- Power Light Nuclear Core Engine Heavy Deuterium Engine Power Core Light Nuclear Core Propulsion Improved Treads Treads Improved Treads Wheel Compact Wheel Utility Small Storage Unit Device Cloak of Protection Storage Small Storage Unit Weapon Autogun Energy Gun Beamcaster Ballistic Gun Autogun Build | -11 -10 -10 -10 -9 -8 -7 -7 -7 ------- Run | Yrd Mat Min Exi Min Mat Fac Was Fac Slots Evolved 6 | . . . . . 4 2 . . Power 1 | . . . . . 1 . . . Propulsion 2 | . . . . . 1 1 . . Utility 2 | . . . . . 1 1 . . Weapon 1 | . . . . . 1 . . . Parts Attached 35 | 6 4 1 1 1 8 7 4 3 Power 7 | 1 . 1 . 1 2 1 . 1 Engine 5 | 1 . 1 . . 2 1 . . Core 2 | . . . . 1 . . . 1 Reactor . | . . . . . . . . . Propulsion 8 | 2 1 . . . 1 2 1 1 Treads 5 | 1 1 . . . 1 1 1 . Leg . | . . . . . . . . . Wheel 3 | 1 . . . . . 1 . 1 Hover . | . . . . . . . . . Flight . | . . . . . . . . . Utility 8 | 1 1 . 1 . 1 2 1 1 Device 7 | . 1 . 1 . 1 2 1 1 Storage 1 | 1 . . . . . . . . Processor . | . . . . . . . . . Hackware . | . . . . . . . . . Protection . | . . . . . . . . . Artifact . | . . . . . . . . . Weapon 12 | 2 2 . . . 4 2 2 . Energy Gun 5 | . . . . . 2 1 2 . Energy Cannon . | . . . . . . . . . Ballistic Gun 7 | 2 2 . . . 2 1 . . Ballistic Cannon . | . . . . . . . . . Launcher . | . . . . . . . . . Special Weapon . | . . . . . . . . . Impact Weapon . | . . . . . . . . . Slashing Weapon . | . . . . . . . . . Piercing Weapon . | . . . . . . . . . Special Melee Weapon . | . . . . . . . . . Unidentified Prototypes 2 | . . . . . . 2 . . Parts Lost . | . . . . . . . . . Power . | . . . . . . . . . Propulsion . | . . . . . . . . . Utility . | . . . . . . . . . Weapon . | . . . . . . . . . Highest Loss Streak . | . . . . . . . . . To Critical Strikes . | . . . . . . . . . Average Backups 7 | 2 7 8 8 7 6 7 7 7 Power . | . 1 1 1 1 . 1 1 1 Propulsion 3 | 1 3 4 4 4 3 3 3 2 Utility . | . . . . . . . 1 2 Weapon 2 | . 2 3 3 2 1 2 1 2 Tool/Special . | . . . . . . . . . Unused Backups 16 | . 5 . . 1 . 1 1 8 Power 1 | . . . . . . . . 1 Propulsion 6 | . 3 . . . . . . 3 Utility 2 | . . . . . . . . 2 Weapon 7 | . 2 . . 1 . 1 1 2 Tool/Special . | . . . . . . . . . Average Slot Usage (%) 94 | . 99 100 100 100 99 92 95 84 Engine 8 | . 14 14 14 2 9 7 7 7 Core 5 | . . . . 11 9 7 7 7 Treads 13 | . 14 14 14 14 17 16 18 7 Wheel 9 | . 14 14 14 14 9 7 7 7 Device 18 | . 13 14 14 14 17 21 23 23 Storage 9 | . 14 14 14 14 9 7 7 7 Energy Gun 9 | . . . . . 11 15 15 15 Ballistic Gun 15 | . 28 28 28 28 15 7 7 7 Peak Build Rating 62 | 6 11 11 18 20 34 42 56 62 Average Rating 35 | 4 8 11 14 19 30 39 48 61 On Entrance 22 | . 6 11 11 18 20 34 42 56 Avg Prop Armor Cover (%) 10 | 14 12 12 9 6 10 10 13 9 Naked Turns . | . . . . . . . . . Heaviest Build 45 | 12 15 15 22 24 34 41 45 45 Greatest Support 70 | 20 16 16 16 16 16 16 16 70 Greatest Overweight (x) 2 | 2 . . 1 1 2 2 2 2 Average Overweight (x) 1 | . . . . 1 2 2 2 1 Largest Inventory Capacity 8 | 8 8 8 8 8 8 8 8 8 Average Capacity 7 | 7 8 8 8 8 8 8 8 8 Most Carried 8 | 6 8 8 8 8 8 8 8 8 Average Carried 7 | 2 7 8 8 7 6 7 7 7 Final Capacity 8 | 8 8 8 8 8 8 8 8 8 Final Carried 8 | 6 8 8 8 8 8 8 8 8 Class Distribution -------------------- 35% | Mutant 32% | Infiltrator-Tank 20% | Skirmisher 11% | Infiltrator-Skirmisher Dominant Class ---------------- Mutant | -10/Materials Mutant | -10/Mines Mutant | -10/Exiles Mutant | -9/Mines Skirmisher | -8/Materials Skirmisher | -7/Factory Infiltrator-Skirmisher | -7/Waste Infiltrator-Tank | -7/Factory Resources | -11 -10 -10 -10 -9 -8 -7 -7 -7 ----------- Run | Yrd Mat Min Exi Min Mat Fac Was Fac Matter Collected 816 | 195 82 33 . 86 189 . 109 122 Remotely . | . . . . . . . . . Salvage Created 679 | . 82 33 . 86 136 . . 342 Parts 42 | . 9 9 . 4 7 . . 13 Haulers Intercepted . | . . . . . . . . . Recyclers Shooed . | . . . . . . . . . Parts Field Recycled . | . . . . . . . . . Retrieved Matter . | . . . . . . . . . Parts Self-Destructed . | . . . . . . . . . Prevented . | . . . . . . . . . Parts Restored . | . . . . . . . . . Kills | -11 -10 -10 -10 -9 -8 -7 -7 -7 ------- Run | Yrd Mat Min Exi Min Mat Fac Was Fac Combat Hostiles Destroyed 17 | . 4 3 . 2 2 . . 6 Guns 17 | . 4 3 . 2 2 . . 6 Classes Destroyed 6 | . 3 . . . 2 . . 1 Watcher 3 | . 1 . . . 1 . . 1 Swarmer 6 | . 3 3 . . . . . . Grunt 5 | . 1 . . 2 . . . 2 Sentry 2 | . . . . . 1 . . 1 Hunter 2 | . . . . . 1 . . 1 Programmer 2 | . . . . . . . . 2 Best Kill Streak 5 | . 5 3 . 2 1 . . 2 Combat Bots Only 4 | . 4 3 . 2 1 . . 2 Max Kills in Single Turn 2 | . 2 2 . 1 1 . . 1 Gunslinging 1 | . 1 1 . . . . . . Exploded . | . . . . . . . . . Melee . | . . . . . . . . . Uniques/NPCs Destroyed . | . . . . . . . . . Combat | -11 -10 -10 -10 -9 -8 -7 -7 -7 -------- Run | Yrd Mat Min Exi Min Mat Fac Was Fac Hostile Shots Fired 76 | . 18 14 . 13 6 . . 25 Missed 21 | . 5 3 . 3 1 . . 9 Hits 55 | . 13 11 . 10 5 . . 16 Projectile 55 | . 13 11 . 10 5 . . 16 Critical Strikes 3 | . 1 . . 1 . . . 1 Damage Taken 608 | . 101 92 . 124 80 . . 211 Core 76 | . 6 34 . . 15 . . 21 Absorbed by Shields . | . . . . . . . . . Core Remaining (%) 93 | 100 . . . 84 97 . . . Volleys Fired 43 | . 7 5 . 8 6 . . 17 Largest 3 | . 2 2 . 2 3 . . 3 Hottest 175 | . 46 46 . 46 149 . . 175 Shots Fired 110 | . 14 10 . 16 18 . . 52 Gun 110 | . 14 10 . 16 18 . . 52 Cannon . | . . . . . . . . . Launcher . | . . . . . . . . . Special . | . . . . . . . . . Kinetic 64 | . 14 10 . 16 6 . . 18 Thermal 46 | . . . . . 12 . . 34 Explosive . | . . . . . . . . . Electromagnetic . | . . . . . . . . . Robot Hit Streak 10 | . 9 7 . 7 6 . . 10 Robot Miss Streak 2 | . 2 1 . 2 1 . . 2 Penetration Max . | . . . . . . . . . Secondary Targets 3 | . 2 1 . . . . . . Max Gunslinging Chain 1 | . 1 1 . . . . . . Shots Hit Robots 80 | . 11 8 . 12 10 . . 39 Core Hits 32 | . 5 3 . 4 5 . . 15 Critical Kills . | . . . . . . . . . Critical Parts Destroyed . | . . . . . . . . . Critical Strikes 3 | . . . . . . . . 3 Burn 3 | . . . . . . . . 3 Melee Attacks . | . . . . . . . . . Impact . | . . . . . . . . . Slashing . | . . . . . . . . . Piercing . | . . . . . . . . . Sneak Attacks . | . . . . . . . . . Combat Hostiles . | . . . . . . . . . Follow-up Attacks . | . . . . . . . . . Damage Inflicted 1423 | . 184 128 . 167 153 . . 791 Guns 1423 | . 184 128 . 167 153 . . 791 Cannons . | . . . . . . . . . Explosions . | . . . . . . . . . Melee . | . . . . . . . . . Ramming . | . . . . . . . . . Kinetic 727 | . 184 128 . 167 35 . . 213 Thermal 696 | . . . . . 118 . . 578 Explosive . | . . . . . . . . . Electromagnetic . | . . . . . . . . . Impact . | . . . . . . . . . Slashing . | . . . . . . . . . Piercing . | . . . . . . . . . Highest Corruption 1 | . . . . . . . . 1 Average Corruption 1 | . . . . . . . . 1 Corruption Purged . | . . . . . . . . . Corruption Blocked . | . . . . . . . . . Effects 6 | . . . . . . . . 6 Message Errors 3 | . . . . . . . . 3 Energy Discharges 1 | . . . . . . . . 1 Data Loss (minor) 1 | . . . . . . . . 1 Misfires 1 | . . . . . . . . 1 Overload Shots . | . . . . . . . . . Overflow Damage . | . . . . . . . . . Projectiles . | . . . . . . . . . Explosions . | . . . . . . . . . Melee . | . . . . . . . . . Knockbacks . | . . . . . . . . . Impact . | . . . . . . . . . Kinetic . | . . . . . . . . . Secondary . | . . . . . . . . . Self-Inflicted Damage . | . . . . . . . . . Shots . | . . . . . . . . . Rammed . | . . . . . . . . . Targets Rammed . | . . . . . . . . . Kicked . | . . . . . . . . . Crushed . | . . . . . . . . . Highest Temperature 331 | . 18 12 . 56 153 . . 331 Average Temperature 70 | . 7 5 . 37 65 . . 108 Received Heat Transfer 174 | . 6 . . 87 9 . . 72 Siege Activations . | . . . . . . . . . Martial Activations . | . . . . . . . . . Shielding Activations . | . . . . . . . . . Robots Disrupted . | . . . . . . . . . Combat Hostiles . | . . . . . . . . . Robots Corrupted . | . . . . . . . . . Combat Hostiles . | . . . . . . . . . Parts Fried . | . . . . . . . . . Impact Corruptions . | . . . . . . . . . Robots Melted . | . . . . . . . . . Combat Hostiles . | . . . . . . . . . Parts Melted 5 | . . . . . . . . 5 Heat Transferred 1443 | . . . . . 259 . . 1184 Parts Sabotaged . | . . . . . . . . . Parts Stolen . | . . . . . . . . . Parts Stripped . | . . . . . . . . . Power Chain Reactions . | . . . . . . . . . Alert | -11 -10 -10 -10 -9 -8 -7 -7 -7 ------- Run | Yrd Mat Min Exi Min Mat Fac Was Fac Maximum Alert Level . | . . . . . . . . . Low Security (%) 100 | 100 100 100 . 100 100 100 100 100 Level 1 . | . . . . . . . . . Level 2 . | . . . . . . . . . Level 3 . | . . . . . . . . . Level 4 . | . . . . . . . . . Level 5 . | . . . . . . . . . High Security . | . . . . . . . . . Max Security . | . . . . . . . . . Peak Influence 100 | . 100 60 . 40 76 25 . 40 Initial 25 | . . 16 . . . 25 . . Average 11 | . 23 18 . 11 24 2 . 8 Influence Increases 645 | . 126 70 . 50 190 24 . 185 Destroy 0b10 Robot/C 400 | . 80 60 . 40 100 . . 120 Destroy 0b10 Robot/NC 15 | . 5 . . . 5 . . 5 Destroy Leader 136 | . 22 10 . 10 52 . . 42 Allied During Kill 20 | . . . . . 16 . . 4 Successful Hack 59 | . 19 . . . 2 24 . 14 Partial Spotted 15 | . . . . . 15 . . . Influence Decreases 630 | . 82 114 . 50 134 80 . 170 Entered New Map 59 | . . 28 . . . 31 . . Time Decay 551 | . 82 86 . 50 114 49 . 170 Lost Ally 20 | . . . . . 20 . . . Squads Dispatched 6 | . 1 . . . 2 1 . 2 Investigation . | . . . . . . . . . Extermination 3 | . . . . . . 1 . 2 Reinforcement 3 | . 1 . . . 2 . . . Assault . | . . . . . . . . . Garrison . | . . . . . . . . . Intercept . | . . . . . . . . . Searches Triggered . | . . . . . . . . . Construction Impeded . | . . . . . . . . . Haulers Reinforced . | . . . . . . . . . Active Scanning Responses . | . . . . . . . . . Cargo Convoy Interrupts . | . . . . . . . . . Stealth | -11 -10 -10 -10 -9 -8 -7 -7 -7 --------- Run | Yrd Mat Min Exi Min Mat Fac Was Fac Distress Signals . | . . . . . . . . . Communications Jammed . | . . . . . . . . . Distress Signals . | . . . . . . . . . Times Spotted 27 | . 8 5 . 2 4 . . 8 Peak Tracking Total 13 | . 6 13 . 2 4 . . 2 Tactical Retreats 1 | . . 1 . . . . . . Traps | -11 -10 -10 -10 -9 -8 -7 -7 -7 ------- Run | Yrd Mat Min Exi Min Mat Fac Was Fac Traps Triggered 1 | . . . . . . 1 . . Indirectly . | . . . . . . . . . Trap Hack Attempts . | . . . . . . . . . Triggered . | . . . . . . . . . Disarmed . | . . . . . . . . . Reprogrammed . | . . . . . . . . . Reused . | . . . . . . . . . Traps Extracted . | . . . . . . . . . Installed . | . . . . . . . . . Triggered . | . . . . . . . . . Machines | -11 -10 -10 -10 -9 -8 -7 -7 -7 ---------- Run | Yrd Mat Min Exi Min Mat Fac Was Fac Machines Disabled . | . . . . . . . . . Max in Single Turn . | . . . . . . . . . Machines Repaired . | . . . . . . . . . Machines Dismantled . | . . . . . . . . . Machines Sabotaged . | . . . . . . . . . Overloaded Fab Kills . | . . . . . . . . . Hacking | -11 -10 -10 -10 -9 -8 -7 -7 -7 --------- Run | Yrd Mat Min Exi Min Mat Fac Was Fac Machines Accessed 14 | . 3 . 1 . 2 2 . 6 Terminals 12 | . 3 . . . 2 2 . 5 Fabricators . | . . . . . . . . . Repair Stations . | . . . . . . . . . Recycling Units . | . . . . . . . . . Scanalyzers . | . . . . . . . . . Garrison Access 1 | . . . . . . . . 1 Total Hacks 40 | . 14 . 1 . 7 3 . 15 Successful 20 | . 10 . 1 . 3 1 . 5 Failed 20 | . 4 . . . 4 2 . 10 Catastrophic 5 | . . . . . . 2 . 3 Database Lockouts . | . . . . . . . . . Manual 36 | . 12 . 1 . 7 2 . 14 Terminals 38 | . 14 . . . 7 3 . 14 Fabricators . | . . . . . . . . . Repair Stations . | . . . . . . . . . Recycling Units . | . . . . . . . . . Scanalyzers . | . . . . . . . . . Garrison Access 1 | . . . . . . . . 1 Terminal Hacks 5 | . 2 . 1 . . 1 . 1 Record 1 | . 1 . . . . . . . Terminal Index 1 | . . . . . . . . 1 Zone Layout 2 | . 1 . . . . 1 . . Proto ID Catalog 1 | . . . 1 . . . . . Fabricator Hacks . | . . . . . . . . . Repair Station Hacks . | . . . . . . . . . Recycling Unit Hacks . | . . . . . . . . . Scanalyzer . | . . . . . . . . . Garrison Access Hacks . | . . . . . . . . . Unauthorized Hacks 15 | . 8 . . . 3 . . 4 Terminals 15 | . 8 . . . 3 . . 4 Track 5 | . 3 . . . 1 . . 1 Botnet 8 | . 3 . . . 2 . . 3 Operators 2 | . 2 . . . . . . . Fabricators . | . . . . . . . . . Repair Stations . | . . . . . . . . . Recycling Units . | . . . . . . . . . Scanalyzers . | . . . . . . . . . Garrison Access . | . . . . . . . . . Data Cores Recovered . | . . . . . . . . . Used . | . . . . . . . . . Hacking Detections 13 | . 3 . . . 2 2 . 6 Full Trace Events 1 | . 1 . . . . . . . Feedback Events . | . . . . . . . . . Feedback Blocked . | . . . . . . . . . Robot Schematics Acquired . | . . . . . . . . . Robots Built . | . . . . . . . . . Authchips . | . . . . . . . . . Time . | . . . . . . . . . Total Robot Build Rating . | . . . . . . . . . Part Schematics Acquired . | . . . . . . . . . Parts Built . | . . . . . . . . . Authchips . | . . . . . . . . . Time . | . . . . . . . . . Total Part Build Rating . | . . . . . . . . . Part Studies Acquired . | . . . . . . . . . Parts Repaired . | . . . . . . . . . Time . | . . . . . . . . . Parts Recycled . | . . . . . . . . . Recycled Matter . | . . . . . . . . . Retrieved Matter . | . . . . . . . . . Retrieved Components . | . . . . . . . . . Parts Scanalyzed . | . . . . . . . . . Part Schematics Acquired . | . . . . . . . . . Parts Damaged . | . . . . . . . . . Bothacking | -11 -10 -10 -10 -9 -8 -7 -7 -7 ------------ Run | Yrd Mat Min Exi Min Mat Fac Was Fac Used RIF Installer . | . . . . . . . . . Robots Hacked . | . . . . . . . . . Non-combat . | . . . . . . . . . Combat . | . . . . . . . . . Robot Hacks Applied . | . . . . . . . . . Relay Couplers Released . | . . . . . . . . . Fabnet Peak Effective % . | . . . . . . . . . Robots Rewired . | . . . . . . . . . Allies Hacked . | . . . . . . . . . Hacks Repelled . | . . . . . . . . . Allies | -11 -10 -10 -10 -9 -8 -7 -7 -7 -------- Run | Yrd Mat Min Exi Min Mat Fac Was Fac Total Allies 2 | . . . . 2 . . . . Largest Group 2 | . . . . 2 2 1 1 1 Highest-Rated Group 43 | . . . . 43 43 28 28 28 Highest-Rated Ally 31 | . . . . 31 31 28 28 28 Total Orders . | . . . . . . . . . Ally Attacks 17 | . . . . . 13 1 . 3 Total Damage 272 | . . . . . 230 . . 42 Kills 3 | . . . . . 3 . . . Allies Corrupted . | . . . . . . . . . Allies Melted . | . . . . . . . . . Intel | -11 -10 -10 -10 -9 -8 -7 -7 -7 ------- Run | Yrd Mat Min Exi Min Mat Fac Was Fac Active Infowar (turns) 3031 | . 496 232 118 . 381 496 400 908 Structural 844 | . 496 232 116 . . . . . Cloaking 1656 | . . . 2 . 381 496 400 377 Jamming 1487 | . . . . . . 179 400 908 Robot Analysis Total . | . . . . . . . . . Derelict Logs Recovered . | . . . . . . . . . Drone Launches . | . . . . . . . . . Drone Recoveries . | . . . . . . . . . Exploration | -11 -10 -10 -10 -9 -8 -7 -7 -7 ------------- Run | Yrd Mat Min Exi Min Mat Fac Was Fac Turns Passed 3433 | 79 507 232 226 202 383 496 400 908 Spaces Moved 2410 | 63 295 215 211 155 208 361 285 617 Core 9 | 9 . . . . . . . . Treads 4 | 3 . . . . . . . 1 Legs . | . . . . . . . . . Wheels 2397 | 51 295 215 211 155 208 361 285 616 Hover . | . . . . . . . . . Flight . | . . . . . . . . . Fastest Speed 50 | 50 100 100 100 115 130 130 130 115 Average Speed 116 | 102 100 100 106 115 130 130 130 116 Slowest Speed 160 | 160 100 100 115 115 130 130 130 160 Overloaded Moves . | . . . . . . . . . Propulsion Burnouts . | . . . . . . . . . Robots Hopped . | . . . . . . . . . Potential Cave-ins . | . . . . . . . . . Cave-ins Triggered . | . . . . . . . . . Exploration Rate (%) 40 | 4 53 57 59 44 23 10 95 20 Regions Visited 8 Branch Regions 3 Pre-discovered Areas . | . . . . . . . . . Known Exits Taken . | . . . . . . . . . Unknown Exits Taken 6 | 1 1 1 1 1 1 . . . Scrap Searched . | . . . . . . . . . Spaces Dug . | . . . . . . . . . Terrain Destroyed . | . . . . . . . . . Melee . | . . . . . . . . . Projectile . | . . . . . . . . . AOE . | . . . . . . . . . Terrain Rammed . | . . . . . . . . . Walls Destroyed . | . . . . . . . . . Machines Disabled . | . . . . . . . . . Actions | -11 -10 -10 -10 -9 -8 -7 -7 -7 --------- Run | Yrd Mat Min Exi Min Mat Fac Was Fac Total 2972 | 74 503 225 211 167 307 392 318 775 Wait 431 | . 183 4 . 1 81 13 18 131 Move 2403 | 62 294 214 210 154 207 361 284 617 Hop . | . . . . . . . . . Pick Up 27 | 6 7 . . 1 4 5 3 1 Fast Attach 9 | 6 1 . . . . . 1 1 Attach 7 | . . . . . 4 2 1 . Detach 1 | . . . . . . 1 . . Swap 20 | . 3 1 1 1 4 5 3 2 Drop 30 | . 8 1 . 2 1 5 7 6 Fire 43 | . 7 5 . 8 6 . . 17 Melee . | . . . . . . . . . Ram . | . . . . . . . . . Kick . | . . . . . . . . . Crush . | . . . . . . . . . Escape Stasis . | . . . . . . . . . Rewire 1 | . . . . . . . 1 . Trap . | . . . . . . . . . Miscellaneous . | . . . . . . . . . Route ------- -11/Scrapyard -10/Materials (discovered 2 exits: [*Mat] / [*Min]) -10/Mines (discovered 3 exits: [*Mat x2] / *Exi) -10/Exiles -9/Mines -8/Materials -7/Factory -7/Waste -7/Factory History --------- Turn | Location | Event 11 | -11/Scrapyard | Discovered new exit (range 15) 80 | -11/Scrapyard | Entered Materials 302 | -10/Materials | Build established: Mutant 489 | -10/Materials | Discovered new exit (range 3) 537 | -10/Materials | Discovered new exit (range 11) 587 | -10/Materials | Entered Mines 616 | -10/Mines | Met a Derelict bent on vengeance 638 | -10/Mines | Discovered new exit (range 7) 653 | -10/Mines | Discovered new exit (range 11) 787 | -10/Mines | Assembled infested the area 799 | -10/Mines | Deemed a non-threat by the Exiles lab entrance 799 | -10/Mines | Discovered new exit (range 5) 819 | -10/Mines | Entered Exiles 843 | -10/Exiles | Met 8R-AWN 859 | -10/Exiles | Met EX-HEX 889 | -10/Exiles | Met EX-BIN 901 | -10/Exiles | Aligned with FarCom system 902 | -10/Exiles | Given EX-Vault access code 928 | -10/Exiles | Opened EX-Vault 935 | -10/Exiles | Found Cloak of Protection 959 | -10/Exiles | Warned to stay clear of 0b10 Research branches 993 | -10/Exiles | Met EX-DEC 1031 | -10/Exiles | Discovered new exit (range 14) 1045 | -10/Exiles | Left Exiles lab with Cloak of Protection 1045 | -10/Exiles | Entered Mines 1235 | -9/Mines | Discovered new exit (range 12) 1247 | -9/Mines | Entered Materials 1247 | -8/Materials | Accompanied by 2 allies 1247 | -8/Materials | Evolved 4 slots: Power x1, Propulsion x1, Utility x1, Weapon x1 1252 | -8/Materials | Led the pair of lost Derelicts to an unsafe place 1539 | -8/Materials | Build established: Skirmisher 1620 | -8/Materials | Discovered new exit (range 3) 1630 | -8/Materials | Entered Factory 1630 | -7/Factory | Accompanied by 1 ally 1630 | -7/Factory | Evolved 2 slots: Propulsion x1, Utility x1 2126 | -7/Factory | Sucked down chute 2126 | -7/Factory | Entered Waste 2126 | -7/Waste | The area was eerily silent 2141 | -7/Waste | 1 allies followed down the chute 2248 | -7/Waste | Build established: Infiltrator-Skirmisher 2382 | -7/Waste | Discovered new exit (range 11) 2526 | -7/Waste | Entered Factory 2526 | -7/Factory | Accompanied by 1 ally 2648 | -7/Factory | Build established: Infiltrator-Tank 3434 | -7/Factory | Self-destructed Last Messages --------------- 03416_ K-01 Serf collects debris. 03417_ Connecting with Terminal... >>Trojan(Botnet) Trojan loaded successfully. Testing... Terminal linked with 2 systems. Awaiting botnet instructions. >>Index(Terminals) Found 19 terminals. Downloaded coordinate data. 03418_ U-05 Engineer works on Pressure Siphon. 03419_ K-01 Serf cleans the Pressure Siphon. 03421_ K-01 Serf collects debris. 03423_ U-05 Engineer works on Pressure Siphon. 03424_ K-01 Serf collects debris. 03428_ K-01 Serf cleans the Pressure Siphon. 03429_ U-05 Engineer works on Pressure Siphon. 03430_ K-01 Serf cleans the Pressure Siphon. 03434_ U-05 Engineer works on Pressure Siphon. Map ----- +----------------------------------------------------+ | ?????????????????????????????????????????????????? | | ?????????????????????????????????????????????????? | | ?????????????????????????????????????????????????? | | ?????????????????????????????????????????????????? | | ?????????????????????????????????????????????????? | | ?????????????????????????????????????????????????? | | ?????????????????????????????????????????????????? | | ?????????????????????????????????????????????????? | | ?????????????????????????????????????????????????? | | ?????????????????????????????????????????????????? | | ?????????????????????????????????????????????????? | | ?????????????????????????????????????????????????? | | ?????????????????????????????????????????????????? | | ?????????????????????????#####???????????????????? | | ????????????????????????? ???????????????????? | | ????????????????????????? ! ??? ????????????????? | | ????????????????????????? ? ????????????????? | | ????????????????????????# ""? "??? +???????????? | | ????????????????????????# """ ""? #???????????? | | ????????????????????????# """ ""? #???????????? | | ????????????????????????# """ """ #???????????? | | ????????????????????????# #???######### | | ????????????????????????# """k""" #???# | | ????????????????????????# """ """ #???? """" | | ????????????????????????# """ """ #???# """" | | ????????????????????????#@ """ """ #???# """" | | ????????????????????????# #???# """" | | ????????????????????????# ! k<< #???# """" | | ????????????????????????# << #???# """" | | ????????????????????????# "T" ku< #???# | | ????????????????????????# """ << #???# | | ???????????????????????## #???# | | ???????????????????+ #???# | | ???????????????????############# #???# | | ???????????????????????????????# #########+#+# | | ???????????????????????????????# | | ???????????????????????????????# | | ???????????????????????????????# | | ???????????????????????????????# | | ???????????????????????????????# | | ??????????????????????????############# | | ??????????????????????????# # | | ??????????????????????????# """ """ =# | | ??????????????????????????# """ """ %+ | | ??????????????????????????#! """ """ [# | | ??????????????????????????# # | | ??????????????????????????# """ """ !# | | ??????????????????????????# """ """ ##### | | ??????????????????????????# """ """ !#???# | | ??????????????????????????#! #???# | +----------------------------------------------------+ Best States ------------- Heat Dissipation 62 Energy Generation 27 Energy Capacity 370 Matter Stores 300 Matter Capacity 300 Sight Range 16 Terrain Scan Density 10 Jamming Range 12 Cloak Strength 5 Evasion (%) 40 Item Schematics ----------------- None Robot Schematics ------------------ None Fabricated ------------ Nothing Repaired ---------- Nothing Studied --------- None Alien Tech Used ----------------- None Achievements -------------- None Challenges ------------ None Game ------ Seed PulseDispersionSuite Manual? 0 Play Time 00:35:26 Cumulative 69.7 hours Start 2025.11.09 @ 19:55:14 End 2026.01.16 @ 20:02:01 Sessions 3 Manual Loads 0 Difficulty Rogue Special Mode None Game No. 59 Rogue 59 Adventurer 0 Explorer 0 Win Type - Total 0 Types 0/0/0/0/0/0/0/0/0/0 Lore% 30 Gallery% 41 Achievement% 22 Wizard Run 0 Options --------- Layout 1 ASCII 0 Keyboard 1 Movement Numpad Keybinds 0 Fullscreen 1 Font 32/SmallcapsGlow Map View 50x35 Zoom Use 0% Tactical HUD 1 Map Filters NONE Filters NONE Steam 1 RUN: e1e147b0-6c11-480a-829d-2fc7c8ba5a60